fUSD/lending_fUSD_20250211
["ID","MTS","AMOUNT","RATE_DAILY","PERIOD"]
[352686928,1739241054513,-500.0,0.00011231,2]
[352686929,1739241054523,-564.5,0.00011231,2]
[352686930,1739241054533,-500.0,0.00011231,2]
[352686931,1739241054543,-500.0,0.00011231,2]
[352686932,1739241054553,-500.0,0.00011231,2]
[352686933,1739241054562,-500.0,0.00011231,2]
[352686934,1739241054572,-325.14211966,0.00011231,2]
[352686935,1739241054585,-174.85788034,0.00011231,2]
[352686936,1739241054594,-474.23346404,0.00011231,2]
[352686937,1739241054604,-500.0,0.00011231,2]
[352686938,1739241054614,-294.54938158,0.00011231,2]
[352686939,1739241054626,-208.98971891,0.00011231,2]
[352686940,1739241054638,-382.21575622,0.00011231,2]
[352686941,1739241054647,-500.0,0.00011231,2]
[352686942,1739241054656,-506.1185332,0.00011231,2]
[352686943,1739241054666,-500.0,0.00011231,2]
[352686944,1739241054675,-505.06663503,0.00011231,2]
[352686945,1739241054685,-500.0,0.00011231,2]
[352686946,1739241054694,-506.87730014,0.00011231,2]
[352686947,1739241054703,-500.0,0.00011231,2]
[352686948,1739241054714,-500.0,0.00011231,2]
[352686949,1739241054724,-470.3320765,0.00011231,2]
[352686950,1739241054735,-29.6679235,0.00011231,2]
[352686951,1739241054749,-500.0,0.00011231,2]
[352686952,1739241054758,-2571.57,0.00011231,2]
[352686953,1739241054767,-500.0,0.00011231,2]
[352686954,1739241054776,-500.0,0.00011231,2]
[352686955,1739241054785,-500.0,0.00011231,2]
[352686956,1739241054795,-500.0,0.00011231,2]
[352686957,1739241054804,-448.6620765,0.00011231,2]
[352686958,1739241054816,-51.3379235,0.00011231,2]
[352686959,1739241054827,-500.0,0.00011231,2]
[352686960,1739241054836,-500.0,0.00011231,2]
[352686961,1739241054845,-73.6620315,0.00011231,2]
[352686962,1739241055459,-500.0,0.00010958,2]
[352686963,1739241055475,-500.0,0.00010958,2]
[352686964,1739241055487,-154.56884015,0.00011094,2]
[352686965,1739241055498,-55.63287684,0.00011094,2]
[352686966,1739241055511,-444.36712316,0.00011094,2]
[352686967,1739241055521,-500.0,0.00011095,2]
[352686968,1739241055531,-500.0,0.00011095,2]
[352686969,1739241055541,-1008.0,0.00011159,2]
[352686970,1739241055557,-992.1279685,0.00011231,2]
[352686971,1739241055567,-500.0,0.00011231,2]
[352686972,1739241055578,-25.10300931,0.00011231,2]
[352686973,1739241055592,-720.82699069,0.00011231,2]
[352686974,1739241055602,-500.0,0.00011231,2]
[352686975,1739241055613,-237.17300931,0.00011231,2]
[352686976,1739241055627,-266.09465253,0.00011231,2]
[352686977,1739241055638,-500.0,0.00011231,2]
[352686978,1739241055649,-500.0,0.00011231,2]
[352686979,1739241055660,-835.06,0.00011231,2]
[352686980,1739241055671,-557.07,0.00011231,2]
[352686981,1739241055682,-500.0,0.00011231,2]
[352686982,1739241055694,-176.27534747,0.00011231,2]
[352686983,1739241055707,-323.72465253,0.00011231,2]
[352686984,1739241055718,-500.0,0.00011231,2]
[352686985,1739241055729,-500.0,0.00011231,2]
[352686986,1739241055740,-983.24,0.00011231,2]
[352686987,1739241055751,-500.0,0.00011231,2]
[352686988,1739241055762,-2404.23,0.00011231,2]
[352686989,1739241055772,-500.0,0.00011231,2]
[352686990,1739241055783,-500.0,0.00011231,2]
[352686991,1739241055794,-507.4076253,0.00011231,2]
[352686992,1739241055805,-512.5735704,0.00011231,2]
[352686993,1739241055816,-514.529495,0.00011231,2]
[352686994,1739241055827,-1237.64,0.00011231,2]
[352686995,1739241055838,-500.0,0.00011231,2]
[352686996,1739241055849,-500.0,0.00011231,2]
[352686997,1739241055860,-500.0,0.00011231,2]
[352686998,1739241055871,-500.0,0.00011231,2]
[352686999,1739241055883,-500.0,0.00011231,2]
[352687000,1739241055894,-500.0,0.00011231,2]
[352687001,1739241055906,-509.86645787,0.00011231,2]
[352687002,1739241055917,-1184.89,0.00011231,2]
[352687003,1739241055929,-500.0,0.00011231,2]
[352687004,1739241055939,-505.99081321,0.00011231,2]
[352687005,1739241055950,-500.0,0.00011231,2]
[352687006,1739241055961,-1169.49,0.00011231,2]
[352687007,1739241055972,-610.24,0.00011231,2]
[352687008,1739241055983,-500.0,0.00011231,2]
[352687009,1739241055993,-500.0,0.00011231,2]
[352687010,1739241056004,-504.99167952,0.00011231,2]
[352687011,1739241056015,-1214.72,0.00011231,2]
[352687012,1739241056026,-500.0,0.00011231,2]
[352687013,1739241056039,-500.0,0.00011231,2]
[352687014,1739241056050,-2713.34,0.00011231,2]
[352687015,1739241056061,-519.87407671,0.00011231,2]
[352687016,1739241056072,-506.54770112,0.00011231,2]
[352687017,1739241056084,-500.0,0.00011231,2]
[352687018,1739241056095,-507.54932446,0.00011231,2]
[352687019,1739241056106,-4056.17,0.00011231,2]
[352687020,1739241056120,-500.0,0.00011231,2]
[352687021,1739241056131,-754.05,0.00011231,2]
[352687022,1739241056143,-507.91616712,0.00011231,2]
[352687023,1739241056154,-500.0,0.00011231,2]
[352687024,1739241056165,-503.47416746,0.00011231,2]
[352687025,1739241056176,-500.0,0.00011231,2]
[352687026,1739241056187,-1088.51,0.00011231,2]
[352687027,1739241056198,-500.0,0.00011231,2]
[352687028,1739241056209,-500.0,0.00011231,2]
[352687029,1739241056220,-607.10289932,0.00011231,2]
[352687030,1739241056230,-978.0,0.00011231,2]
[352687031,1739241056241,-500.0,0.00011231,2]
[352687032,1739241056251,-500.0,0.00011231,2]
[352687033,1739241056263,-504.13453008,0.00011231,2]
[352687034,1739241056274,-500.0,0.00011231,2]
[352687035,1739241056285,-500.0,0.00011231,2]
[352687036,1739241056296,-726.59,0.00011231,2]
[352687037,1739241056307,-500.0,0.00011231,2]
[352687038,1739241056318,-500.0,0.00011231,2]
[352687039,1739241056330,-500.0,0.00011231,2]
[352687040,1739241056341,-500.0,0.00011231,2]
[352687041,1739241056352,-1861.43,0.00011231,2]
[352687042,1739241056363,-500.0,0.00011231,2]
[352687043,1739241056373,-500.0,0.00011231,2]
[352687044,1739241056383,-500.0,0.00011231,2]
[352687045,1739241056394,-527.87,0.00011231,2]
[352687046,1739241056404,-500.0,0.00011231,2]
[352687047,1739241056415,-501.63553484,0.00011231,2]
[352687048,1739241056426,-500.0,0.00011231,2]
[352687049,1739241056437,-500.0,0.00011231,2]
[352687050,1739241056448,-399.42896717,0.00011232,2]
[352687051,1739241056459,-500.0,0.00011232,2]
[352687052,1739241056474,-504.14443193,0.00011232,2]
[352687053,1739241056486,-500.0,0.00011232,2]
[352687054,1739241056504,-500.0,0.00011232,2]
[352687055,1739241056516,-500.0,0.00011232,2]
[352687056,1739241056528,-527.45956452,0.00011232,2]
[352687057,1739241056540,-500.0,0.00011232,2]
[352687058,1739241056551,-500.0,0.00011232,2]
[352687059,1739241056562,-504.29018618,0.00011232,2]
[352687060,1739241056573,-500.0,0.00011232,2]
[352687061,1739241056586,-623.44,0.00011232,2]
[352687062,1739241056597,-504.72101956,0.00011232,2]
[352687063,1739241056608,-500.0,0.00011232,2]
[352687064,1739241056618,-500.0,0.00011232,2]
[352687065,1739241056629,-500.0,0.00011232,2]
[352687066,1739241056639,-500.0,0.00011232,2]
[352687067,1739241056650,-500.0,0.00011232,2]
[352687068,1739241056662,-509.24580324,0.00011232,2]
[352687069,1739241056675,-500.0,0.00011232,2]
[352687070,1739241056693,-500.0,0.00011232,2]
[352687071,1739241056708,-500.0,0.00011232,2]
[352687072,1739241056719,-500.0,0.00011232,2]
[352687073,1739241056730,-505.29869288,0.00011232,2]
[352687074,1739241056741,-500.0,0.00011232,2]
[352687075,1739241056752,-500.0,0.00011232,2]
[352687076,1739241056763,-500.0,0.00011232,2]
[352687077,1739241056774,-500.0,0.00011232,2]
[352687078,1739241056785,-510.09145478,0.00011232,2]
[352687079,1739241056796,-500.0,0.00011232,2]
[352687080,1739241056806,-500.0,0.00011232,2]
[352687081,1739241056817,-508.5,0.00011232,2]
[352687082,1739241056831,-500.0,0.00011232,2]
[352687083,1739241056843,-500.0,0.00011232,2]
[352687084,1739241056854,-500.0,0.00011232,2]
[352687085,1739241056864,-500.0,0.00011232,2]
[352687086,1739241056875,-500.0,0.00011232,2]
[352687087,1739241056887,-500.0,0.00011232,2]
[352687088,1739241056897,-500.0,0.00011232,2]
[352687089,1739241056908,-500.0,0.00011232,2]
[352687090,1739241056919,-500.0,0.00011232,2]
[352687091,1739241056930,-500.0,0.00011232,2]
[352687092,1739241056941,-554.34,0.00011232,2]
[352687093,1739241056952,-500.0,0.00011232,2]
[352687094,1739241056963,-500.0,0.00011232,2]
[352687095,1739241056973,-500.0,0.00011232,2]
[352687096,1739241056984,-500.0,0.00011232,2]
[352687097,1739241056994,-891.54,0.00011232,2]
[352687098,1739241057005,-527.12,0.00011232,2]
[352687099,1739241057015,-676.06,0.00011232,2]
[352687100,1739241057026,-507.73842966,0.00011232,2]
[352687101,1739241057036,-500.0,0.00011232,2]
[352687102,1739241057047,-500.0,0.00011232,2]
[352687103,1739241057057,-515.26217684,0.00011232,2]
[352687104,1739241057067,-653.75,0.00011232,2]
[352687105,1739241057079,-643.96,0.00011232,2]
[352687106,1739241057090,-500.0,0.00011232,2]
[352687107,1739241057100,-500.0,0.00011232,2]
[352687108,1739241057111,-500.0,0.00011232,2]
[352687109,1739241057121,-500.0,0.00011232,2]
[352687110,1739241057132,-561.47,0.00011232,2]
[352687111,1739241057142,-500.0,0.00011232,2]
[352687112,1739241057152,-740.02,0.00011232,2]
[352687113,1739241057163,-528.37,0.00011232,2]
[352687114,1739241057173,-500.0,0.00011232,2]
[352687115,1739241057184,-567.73,0.00011232,2]
[352687116,1739241057194,-500.0,0.00011232,2]
[352687117,1739241057205,-2557.98,0.00011232,2]
[352687118,1739241057215,-736.49,0.00011232,2]
[352687119,1739241057226,-637.73,0.00011232,2]
[352687120,1739241057236,-560.6,0.00011232,2]
[352687121,1739241057247,-500.0,0.00011232,2]
[352687122,1739241057258,-591.31,0.00011232,2]
[352687123,1739241057268,-500.0,0.00011232,2]
[352687124,1739241057279,-500.0,0.00011232,2]
[352687125,1739241057289,-500.0,0.00011232,2]
[352687126,1739241057299,-500.0,0.00011232,2]
[352687127,1739241057310,-500.0,0.00011232,2]
[352687128,1739241057324,-510.47,0.00011232,2]
[352687129,1739241057335,-500.0,0.00011232,2]
[352687130,1739241057344,-507.16,0.00011232,2]
[352687131,1739241057353,-972.76,0.00011232,2]
[352687132,1739241057362,-424.92507626,0.00011232,2]
[352687133,1739241057372,-605.41,0.00011232,2]
[352687134,1739241057381,-500.0,0.00011232,2]
[352687135,1739241057391,-504.78227299,0.00011232,2]
[352687136,1739241057400,-500.0,0.00011232,2]
[352687137,1739241057409,-817.67,0.00011232,2]
[352687138,1739241057419,-500.0,0.00011232,2]
[352687139,1739241057428,-291.11398102,0.00011232,2]
[352687140,1739241057443,-217.5128135,0.00011232,2]
[352687141,1739241057453,-512.4,0.00011232,2]
[352687142,1739241057463,-500.0,0.00011232,2]
[352687143,1739241057476,-556.11,0.00011232,2]
[352687144,1739241057486,-522.18,0.00011232,2]
[352687145,1739241057496,-500.0,0.00011232,2]
[352687146,1739241057506,-636.828149,0.00011232,2]
[352687147,1739241057516,-500.0,0.00011232,2]
[352687148,1739241057525,-500.0,0.00011232,2]
[352687149,1739241057534,-500.0,0.00011232,2]
[352687150,1739241057545,-362.9690375,0.00011232,2]
[352687151,1739241057556,-336.8609625,0.00011232,2]
[352687152,1739241057566,-500.0,0.00011232,2]
[352687153,1739241057575,-658.06,0.00011232,2]
[352687154,1739241057585,-500.0,0.00011232,2]
[352687155,1739241057595,-612.56,0.00011232,2]
[352687156,1739241057604,-500.0,0.00011232,2]
[352687157,1739241057613,-500.0,0.00011232,2]
[352687158,1739241057624,-311.79710515,0.00011232,2]
[352687159,1739241057633,-826.98,0.00011232,2]
[352687160,1739241057642,-500.0,0.00011232,2]
[352687161,1739241057651,-671.21,0.00011232,2]
[352687162,1739241057660,-588.109069,0.00011232,2]
[352687163,1739241057670,-506.0,0.00011232,2]
[352687164,1739241057679,-500.0,0.00011232,2]
[352687165,1739241057688,-725.54,0.00011232,2]
[352687166,1739241057698,-500.0,0.00011232,2]
[352687167,1739241058071,-587.29,0.00011232,2]
[352687168,1739241058093,-500.0,0.00011232,2]
[352687169,1739241058109,-500.0,0.00011232,2]
[352687170,1739241058119,-727.91,0.00011232,2]
[352687171,1739241058129,-500.0,0.00011232,2]
[352687172,1739241058138,-500.0,0.00011232,2]
[352687173,1739241058147,-679.74,0.00011232,2]
[352687174,1739241058156,-500.0,0.00011232,2]
[352687175,1739241058166,-500.0,0.00011232,2]
[352687176,1739241058175,-500.0,0.00011232,2]
[352687177,1739241058184,-858.81,0.00011232,2]
[352687178,1739241058194,-500.0,0.00011232,2]
[352687179,1739241058203,-704.99,0.00011232,2]
[352687180,1739241058212,-500.0,0.00011232,2]
[352687181,1739241058222,-657.7,0.00011232,2]
[352687182,1739241058231,-912.83,0.00011232,2]
[352687183,1739241058240,-764.11,0.00011232,2]
[352687184,1739241058249,-500.0,0.00011232,2]
[352687185,1739241058259,-500.0,0.00011232,2]
[352687186,1739241058268,-530.54,0.00011232,2]
[352687187,1739241058278,-779.64,0.00011232,2]
[352687188,1739241058287,-775.38,0.00011232,2]
[352687189,1739241058297,-594.67,0.00011232,2]
[352687190,1739241058306,-586.18,0.00011232,2]
[352687191,1739241058316,-403.09286435,0.00011232,2]
[352687192,1739241058329,-303.26713565,0.00011232,2]
[352687193,1739241058339,-662.37,0.00011232,2]
[352687194,1739241058348,-500.0,0.00011232,2]
[352687195,1739241058357,-675.5,0.00011232,2]
[352687196,1739241058366,-630.22,0.00011232,2]
[352687197,1739241058376,-241.19053785,0.00011232,2]
[352687198,1739241058387,-258.80946215,0.00011232,2]
[352687199,1739241058396,-511.32,0.00011232,2]
[352687200,1739241058405,-599.08,0.00011232,2]
[352687201,1739241058417,-500.0,0.00011232,2]
[352687202,1739241058426,-585.6,0.00011232,2]
[352687203,1739241058435,-652.54,0.00011232,2]
[352687204,1739241058444,-500.0,0.00011232,2]
[352687205,1739241058453,-859.23,0.00011232,2]
[352687206,1739241058463,-500.0,0.00011232,2]
[352687207,1739241058476,-785.43,0.00011232,2]
[352687208,1739241058485,-500.0,0.00011232,2]
[352687209,1739241058494,-500.0,0.00011232,2]
[352687210,1739241058503,-500.0,0.00011232,2]
[352687211,1739241058513,-500.0,0.00011232,2]
[352687212,1739241058523,-1857.1,0.00011232,2]
[352687213,1739241058532,-500.0,0.00011232,2]
[352687214,1739241058542,-536.02,0.00011232,2]
[352687215,1739241058551,-686.84,0.00011232,2]
[352687216,1739241058561,-500.0,0.00011232,2]
[352687217,1739241058570,-836.01,0.00011232,2]
[352687218,1739241058580,-768.7,0.00011232,2]
[352687219,1739241058590,-1196.61,0.00011232,2]
[352687220,1739241058599,-500.0,0.00011232,2]
[352687221,1739241058609,-500.0,0.00011232,2]
[352687222,1739241058618,-1726.7,0.00011232,2]
[352687223,1739241058627,-576.91,0.00011232,2]
[352687224,1739241058636,-500.0,0.00011232,2]
[352687225,1739241058646,-787.31,0.00011232,2]
[352687226,1739241058656,-470.10013385,0.00011232,2]
[352687227,1739241112910,837.0,0.0002,120]
[352687228,1739241274130,1500.0,0.0002,120]
[352687229,1739241302475,1734.05,0.0002,120]
[352687237,1739241896637,449.36,8.219e-05,2]
[352687238,1739241896659,68.43,8.219e-05,2]
[352687243,1739242231836,-2164.533616,8.904e-05,2]
[352687244,1739242231846,-150.0,8.949e-05,2]
[352687245,1739242231855,-150.0,8.963e-05,2]
[352687246,1739242231865,-1004.75795664,8.972e-05,2]
[352687247,1739242231876,-150.0,8.972e-05,2]
[352687248,1739242231885,-193.543207,8.972e-05,2]
[352687249,1739242231895,-300.0,8.972e-05,2]
[352687250,1739242231904,-13081.6064225,8.973e-05,2]
[352687251,1739242231924,-1771.80055567,8.973e-05,2]
[352687252,1739242231935,-1112.22,8.973e-05,2]
[352687253,1739242231968,-69657.13142183,8.973e-05,2]
[352687254,1739242231978,-409.9757,8.973e-05,2]
[352687255,1739242231987,-150.0,9.205e-05,2]
[352687256,1739242231997,-1000.0,9.781e-05,2]
[352687257,1739242232007,-150.0,9.819e-05,2]
[352687258,1739242232016,-264.0,9.829e-05,2]
[352687259,1739242232026,-500.0,0.00010029,2]
[352687260,1739242232036,-260.7,0.00010137,2]
[352687261,1739242232047,-250.0,0.00010138,2]
[352687262,1739242232057,-343.85,0.00010194,2]
[352687263,1739242232067,-23900.0,0.00010269,2]
[352687264,1739242232076,-170.63,0.00010299,2]
[352687265,1739242232086,-517.79,0.0001047,2]
[352687266,1739242232100,-209.0,0.0001085,2]
[352687267,1739242232110,-176.48052831,0.00010957,2]
[352687268,1739242232119,-500.0,0.00010957,2]
[352687269,1739242232128,-504.04997152,0.00010957,2]
[352687270,1739242232139,-207.74201727,0.00010957,2]
[352687271,1739242232148,-500.0,0.00010957,2]
[352687272,1739242232157,-510.12681046,0.00010957,2]
[352687273,1739242232166,-502.91931516,0.00010957,2]
[352687274,1739242232176,-500.0,0.00010957,2]
[352687275,1739242232186,-426.79709903,0.00010957,2]
[352687276,1739242232195,-492.44,0.00010957,2]
[352687277,1739242232206,-496.78,0.00010958,2]
[352687278,1739242232216,-501.1948617,0.00010958,2]
[352687279,1739242232227,-502.9225238,0.00010958,2]
[352687280,1739242232237,-501.20683622,0.00010958,2]
[352687281,1739242232247,-512.98066892,0.00010958,2]
[352687282,1739242232256,-228.45327663,0.00010958,2]
[352687283,1739242232266,-501.60271732,0.00010958,2]
[352687284,1739242232275,-355.43934401,0.00010958,2]
[352687285,1739242232285,-500.0,0.00010958,2]
[352687286,1739242232297,-501.49428982,0.00010958,2]
[352687287,1739242232308,-469.95914144,0.00010958,2]
[352687288,1739242232318,-514.595435,0.00010958,2]
[352687290,1739242232327,-467.47533306,0.00010958,2]
[352687292,1739242232337,-557.224631,0.00010958,2]
[352687294,1739242232346,-500.0,0.00010958,2]
[352687296,1739242232356,-500.0,0.00010958,2]
[352687298,1739242232366,-500.0,0.00010958,2]
[352687299,1739242232375,-500.0,0.00010958,2]
[352687300,1739242232384,-500.0,0.00010958,2]
[352687301,1739242232394,-500.0,0.00010958,2]
[352687302,1739242232403,-500.0,0.00010958,2]
[352687303,1739242232412,-500.0,0.00010958,2]
[352687304,1739242232422,-500.0,0.00010958,2]
[352687305,1739242232431,-500.0,0.00010958,2]
[352687306,1739242232440,-500.0,0.00010958,2]
[352687307,1739242232450,-505.73095588,0.00010958,2]
[352687308,1739242232459,-500.0,0.00010958,2]
[352687309,1739242232468,-500.0,0.00010958,2]
[352687310,1739242232478,-500.0,0.00010958,2]
[352687311,1739242232487,-500.0,0.00010958,2]
[352687312,1739242232497,-500.0,0.00010958,2]
[352687313,1739242232506,-601.85514606,0.00010958,2]
[352687315,1739242232516,-282.97696991,0.00010958,2]
[352687317,1739242232525,-506.02653289,0.00010958,2]
[352687319,1739242232534,-500.0,0.00010958,2]
[352687321,1739242232543,-519.75306551,0.00010958,2]
[352687323,1739242232553,-500.0,0.00010958,2]
[352687325,1739242232562,-500.0,0.00010958,2]
[352687327,1739242232571,-500.0,0.00010958,2]
[352687329,1739242232581,-526.55,0.00010958,2]
[352687331,1739242232590,-500.0,0.00010958,2]
[352687333,1739242232600,-500.0,0.00010958,2]
[352687335,1739242232610,-500.0,0.00010958,2]
[352687337,1739242232619,-507.12716445,0.00010958,2]
[352687338,1739242232627,-500.0,0.00010958,2]
[352687340,1739242232637,-500.0,0.00010958,2]
[352687342,1739242232646,-513.67693712,0.00010958,2]
[352687344,1739242232655,-500.0,0.00010958,2]
[352687346,1739242232664,-500.0,0.00010958,2]
[352687348,1739242232673,-500.0,0.00010958,2]
[352687350,1739242232682,-641.47,0.00010958,2]
[352687352,1739242232691,-500.0,0.00010958,2]
[352687354,1739242232701,-507.63847671,0.00010958,2]
[352687356,1739242232710,-500.0,0.00010958,2]
[352687358,1739242232719,-500.0,0.00010958,2]
[352687360,1739242232728,-500.0,0.00010958,2]
[352687362,1739242232737,-504.75,0.00010958,2]
[352687364,1739242232746,-507.81169966,0.00010958,2]
[352687366,1739242232755,-500.0,0.00010958,2]
[352687368,1739242232764,-500.0,0.00010958,2]
[352687370,1739242232773,-500.0,0.00010958,2]
[352687372,1739242232783,-500.0,0.00010958,2]
[352687374,1739242232792,-500.0,0.00010958,2]
[352687376,1739242232802,-500.0,0.00010958,2]
[352687378,1739242232811,-500.0,0.00010958,2]
[352687380,1739242232820,-189.97726562,0.00010958,2]
[352687382,1739242232829,-200.5014316,0.00010958,2]
[352687384,1739242232838,-504.86061358,0.00010958,2]
[352687386,1739242232847,-500.0,0.00010958,2]
[352687388,1739242232857,-500.0,0.00010958,2]
[352687390,1739242232866,-610.07,0.00010958,2]
[352687392,1739242232879,-500.0,0.00010958,2]
[352687394,1739242232888,-504.56119182,0.00010958,2]
[352687396,1739242232897,-500.0,0.00010958,2]
[352687398,1739242232906,-543.91,0.00010958,2]
[352687400,1739242232915,-500.0,0.00010958,2]
[352687402,1739242232926,-160.914469,0.00010958,2]
[352687404,1739242232935,-512.89,0.00010958,2]
[352687406,1739242232944,-500.0,0.00010958,2]
[352687408,1739242232954,-500.0,0.00010958,2]
[352687410,1739242232964,-500.0,0.00010958,2]
[352687412,1739242232973,-500.0,0.00010958,2]
[352687414,1739242232982,-500.0,0.00010958,2]
[352687416,1739242232992,-500.0,0.00010958,2]
[352687418,1739242233002,-500.0,0.00010958,2]
[352687420,1739242233011,-500.0,0.00010958,2]
[352687422,1739242233021,-500.0,0.00010958,2]
[352687424,1739242233032,-500.0,0.00010958,2]
[352687426,1739242233042,-500.0,0.00010958,2]
[352687428,1739242233054,-500.0,0.00010958,2]
[352687430,1739242233064,-500.0,0.00010958,2]
[352687432,1739242233074,-500.0,0.00010958,2]
[352687434,1739242233083,-500.0,0.00010958,2]
[352687436,1739242233093,-500.0,0.00010958,2]
[352687438,1739242233102,-556.98165232,0.00010958,2]
[352687440,1739242233111,-500.0,0.00010958,2]
[352687442,1739242233121,-500.0,0.00010958,2]
[352687444,1739242233130,-171.027545,0.00010958,2]
[352687446,1739242233140,-500.0,0.00010958,2]
[352687448,1739242233149,-619.82158455,0.00010958,2]
[352687450,1739242233158,-504.60136731,0.00010958,2]
[352687452,1739242233167,-500.0,0.00010958,2]
[352687454,1739242233177,-500.0,0.00010958,2]
[352687456,1739242233187,-500.0,0.00010958,2]
[352687458,1739242233197,-500.0,0.00010958,2]
[352687460,1739242233207,-500.0,0.00010958,2]
[352687461,1739242233216,-500.0,0.00010958,2]
[352687463,1739242233226,-354.59296734,0.00010958,2]
[352687465,1739242233235,-500.0,0.00010958,2]
[352687467,1739242233245,-505.19088532,0.00010958,2]
[352687469,1739242233254,-500.0,0.00010958,2]
[352687471,1739242233264,-908.09,0.00010958,2]
[352687474,1739242233274,-501.46902258,0.00010958,2]
[352687476,1739242233283,-500.0,0.00010958,2]
[352687477,1739242233294,-500.0,0.00010958,2]
[352687480,1739242233304,-545.69,0.00010958,2]
[352687482,1739242233313,-500.0,0.00010958,2]
[352687483,1739242233324,-504.071431,0.00010958,2]
[352687485,1739242233333,-500.0,0.00010958,2]
[352687487,1739242233342,-682.22,0.00010958,2]
[352687489,1739242233352,-500.0,0.00010958,2]
[352687491,1739242233361,-500.0,0.00010958,2]
[352687493,1739242233371,-500.0,0.00010958,2]
[352687495,1739242233380,-500.0,0.00010958,2]
[352687497,1739242233390,-500.0,0.00010958,2]
[352687499,1739242233399,-500.0,0.00010958,2]
[352687501,1739242233409,-502.98352115,0.00010958,2]
[352687503,1739242233418,-500.0,0.00010958,2]
[352687505,1739242233428,-500.0,0.00010958,2]
[352687508,1739242233439,-500.0,0.00010958,2]
[352687510,1739242233449,-500.0,0.00010958,2]
[352687512,1739242233459,-501.86175699,0.00010958,2]
[352687514,1739242233470,-500.0,0.00010958,2]
[352687516,1739242233479,-693.67,0.00010958,2]
[352687518,1739242233489,-500.0,0.00010958,2]
[352687520,1739242233499,-631.97,0.00010958,2]
[352687522,1739242233509,-500.0,0.00010958,2]
[352687524,1739242233519,-500.0,0.00010958,2]
[352687526,1739242233529,-500.0,0.00010958,2]
[352687528,1739242233538,-500.0,0.00010958,2]
[352687530,1739242233548,-736.3,0.00010958,2]
[352687532,1739242233559,-500.0,0.00010958,2]
[352687534,1739242233569,-500.0,0.00010958,2]
[352687536,1739242233578,-500.0,0.00010958,2]
[352687538,1739242233588,-588.63,0.00010958,2]
[352687540,1739242233597,-505.85708612,0.00010958,2]
[352687542,1739242233607,-500.0,0.00010958,2]
[352687566,1739242233824,-500.0,0.00010958,2]
[352687568,1739242233838,-500.0,0.00010958,2]
[352687570,1739242233848,-717.54,0.00010958,2]
[352687572,1739242233858,-550.9,0.00010958,2]
[352687574,1739242233868,-500.0,0.00010958,2]
[352687576,1739242233881,-500.0,0.00010958,2]
[352687578,1739242233891,-500.0,0.00010958,2]
[352687580,1739242233900,-500.0,0.00010958,2]
[352687582,1739242233911,-500.0,0.00010958,2]
[352687584,1739242233921,-329.0640917,0.00010958,2]
[352687587,1739242233943,-170.9359083,0.00010958,2]
[352687588,1739242233955,-500.0,0.00010958,2]
[352687589,1739242233966,-544.27,0.00010958,2]
[352687590,1739242233976,-500.0,0.00010958,2]
[352687591,1739242233986,-500.0,0.00010958,2]